[Event "SWE-ch Masters 2018"]
[Site "Ronneby"]
[Date "2018.07.08"]
[Round "9"]
[White "Walinder, Lars"]
[Black "Nyander, Joakim"]
[Result "1-0"]
[ECO "A30"]
[WhiteElo "2231"]
[BlackElo "2203"]
[Annotator "NA"]
[PlyCount "81"]
[EventDate "2018.06.30"]
[EventType "tourn"]
[EventCountry "SWE"]
[SourceTitle "playchess.com"]
[Source "ChessBase"]
[SourceQuality "1"]
[TimeControl "40/5400+30:1800+30"]

1. c4 {[%emt 0:00:00]} c5 {[%emt 0:00:00]} 2. Nf3 {[%emt 0:00:00]} Nf6 {[%emt 0:00:58]} 3. Nc3 {[%emt 0:00:01]} e6 {[%emt 0:00:34]} 4. e3 {[%emt 0:00:19]} Be7 {[%emt 0:01:58]} 5. d4 {[%emt 0:00:26]} cxd4 {[%emt 0:01:09]} 6. exd4 {[%emt 0:00:37]} d5 {[%emt 0:00:25] LiveBook: 1722 Partien} 7. Bg5 {[%emt 0:08:32]} Nbd7 {[%emt 0:11:07] B14: Caro-Kann: Panov-Botvinnik Attack with 5...e6 and 5...g6} (7... O-O 8. Rc1 Nc6 9. c5 b6 10. Bb5 Bd7 11. Bxc6 Bxc6 12. b4 bxc5 13. bxc5 Rb8 14. Ne5 Qc8 15. O-O h6 16. Bh4 Re8 {1-0 (34) Artemiev,V (2691)-Le,Q (2737) Huaian 2017}) 8. c5 {[%emt 0:06:40]} Ne4 {[%emt 0:07:54]} 9. Bxe7 {[%emt 0:11:21]} Nxc3 $146 {[%emt 0:04:25]} ({Predecessor:} 9... Qxe7 10. Bd3 Nxc3 11. bxc3 h6 12. O-O O-O 13. Re1 {0-1 (24) Stenseth,B-Ciklabakkal,M ICCF email 2007}) 10. bxc3 {[%emt 0:02:55]} ({Better is} 10. Bxd8 $14 Nxd1 11. Rxd1 Kxd8 12. Bd3) 10... Qxe7 {[%emt 0:01:04]} 11. Bb5 {[%emt 0:00:54]} O-O {[%emt 0:01:25]} 12. O-O {[%emt 0:00:19]} b6 {[%emt 0:04:00]} 13. Bxd7 {[%emt 0:10:20]} Bxd7 {[%emt 0:03:10]} 14. cxb6 {[%emt 0:00:21]} axb6 {[%emt 0:00:07]} 15. Qb3 {[%emt 0:01:16]} b5 {[%emt 0:05:32]} 16. Ne5 {[%emt 0:00:59]} Ra3 {[%emt 0:04:09]} 17. Qb2 $1 {[%emt 0:03:03]} Rfa8 {[%emt 0:02:00]} 18. Nd3 {[%emt 0:06:03]} Be8 {[%emt 0:02:02]} 19. Nb4 {[%emt 0:06:36]} Qc7 {[%emt 0:00:53]} 20. Rac1 {[%emt 0:01:39]} Qc4 {[%emt 0:04:46]} 21. Rfe1 {[%emt 0:02:06]} Bd7 {[%emt 0:02:20]} 22. Re3 {[%emt 0:01:18]} R3a7 {[%emt 0:01:28]} 23. Rce1 {[%emt 0:01:32]} Rc8 {[%emt 0:06:18]} 24. Rg3 {[%emt 0:01:54]} f6 {[%emt 0:04:32]} 25. h4 {[%emt 0:04:36]} Kh8 {[%emt 0:04:54]} 26. Qd2 {[%emt 0:01:11]} Re8 {[%emt 0:01:59]} 27. h5 {[%emt 0:04:31]} h6 $11 {[%emt 0:01:40]} 28. Ree3 {[%emt 0:05:32]} Bc8 {[%emt 0:01:03]} 29. Ref3 {[%emt 0:01:14]} Rf8 {[%emt 0:03:02]} 30. Rg6 {[%emt 0:02:13]} Kh7 {[%emt 0:03:42]} 31. Rfg3 {[%emt 0:02:01]} Rff7 {[%emt 0:00:20]} 32. Qc2 {[%emt 0:07:54]} Kh8 {[%emt 0:00:49]} 33. Qd2 {[%emt 0:00:29]} Kh7 {[%emt 0:00:08]} 34. Qe3 {[%emt 0:00:34]} Rae7 {[%emt 0:02:45]} 35. Qf3 {[%emt 0:02:15]} e5 {[%emt 0:04:21]} 36. Nxd5 {[%emt 0:02:36]} e4 {[%emt 0:00:28]} 37. Rxg7+ {[%emt 0:00:19]} Rxg7 {[%emt 0:01:19]} 38. Nxf6+ {[%emt 0:00:24]} Kh8 {[%emt 0:00:09]} 39. Qf4 {[%emt 0:02:03]} Qe6 {[%emt 0:01:48]} 40. Qxh6+ {[%emt 0:00:38]} Rh7 {[%emt 0:00:07]} 41. Qf8+ {[%emt 0:30:10]} 1-0

[Event "SWE-ch Masters 2018"]
[Site "Ronneby"]
[Date "2018.07.08"]
[Round "9"]
[White "Laksman, Efraim"]
[Black "Andersson, Paul"]
[Result "0-1"]
[ECO "A30"]
[WhiteElo "2184"]
[BlackElo "2099"]
[Annotator "NA"]
[PlyCount "82"]
[EventDate "2018.06.30"]
[EventType "tourn"]
[EventCountry "SWE"]
[SourceTitle "playchess.com"]
[Source "ChessBase"]
[SourceQuality "1"]
[TimeControl "40/5400+30:1800+30"]

1. c4 {[%emt 0:00:00]} c5 {[%emt 0:00:00]} 2. g3 {[%emt 0:00:00]} Nc6 {[%emt 0:00:00]} 3. Bg2 {[%emt 0:00:00]} g6 {[%emt 0:00:00]} 4. Nf3 {[%emt 0:00:23]} Bg7 {[%emt 0:00:00]} 5. O-O {[%emt 0:00:06]} d6 {[%emt 0:00:38]} 6. Nc3 {[%emt 0:00:12]} e5 {[%emt 0:00:36]} 7. d3 {[%emt 0:00:21]} Nge7 {[%emt 0:00:40] LiveBook: 715 Partien} 8. Rb1 {[%emt 0:01:09]} O-O {[%emt 0:00:52]} 9. a3 {[%emt 0:00:05]} h6 {[%emt 0:04:19]} 10. b4 {[%emt 0:07:42]} Rb8 {[%emt 0:05:30]} 11. e3 {[%emt 0:06:41] A37: Symmetrical English vs ...g6: 4 Bg2 Bg7 5 Nf3} (11. Nd2 b6 12. Qa4 Bd7 13. b5 Na5 14. Qc2 f5 15. Bb2 Kh7 16. e3 Qe8 17. Rbe1 Nb7 18. f4 Nd8 {1-0 (40) Bocharov,D (2583)-Tregubov,P (2575) Riadh 2017}) 11... f5 {[%emt 0:05:39]} 12. Qc2 {[%emt 0:01:59]} Be6 {[%emt 0:07:46]} 13. b5 {[%emt 0:03:37]} Na5 {[%emt 0:00:08]} 14. Nd2 {[%emt 0:05:07]} Kh7 $146 {[%emt 0:21:05]} ({Predecessor:} 14... Qd7 15. Nd5 g5 16. f4 Ng6 17. Bb2 exf4 18. exf4 {0-1 (30) Davidson,N (1868)-Poulton,C Brisbane 2006}) 15. f4 {[%emt 0:13:26]} d5 {[%emt 0:04:31]} 16. cxd5 {[%emt 0:02:07]} Nxd5 {[%emt 0:00:11]} 17. Nxd5 {[%emt 0:00:09]} Bxd5 {[%emt 0:00:10]} 18. e4 {[%emt 0:00:10]} Be6 {[%emt 0:04:23]} 19. Nf3 {[%emt 0:07:54]} exf4 $15 {[%emt 0:09:46]} 20. gxf4 {[%emt 0:03:27]} c4 {[%emt 0:02:34]} 21. dxc4 {[%emt 0:03:44]} Nxc4 {[%emt 0:02:19]} 22. e5 {[%emt 0:00:48]} Qb6+ {[%emt 0:02:08]} 23. Qf2 {[%emt 0:00:35]} Qxf2+ {[%emt 0:01:48]} 24. Kxf2 {[%emt 0:04:06]} Rfd8 {[%emt 0:00:26]} 25. Ke2 {[%emt 0:18:08]} Bf8 {[%emt 0:01:30]} 26. Rd1 {[%emt 0:01:37]} Rxd1 {[%emt 0:04:04]} 27. Kxd1 {[%emt 0:00:01]} Rd8+ {[%emt 0:02:58]} 28. Kc2 {[%emt 0:04:50]} Bxa3 {[%emt 0:00:44]} 29. Bf1 {[%emt 0:01:36]} Bxc1 {[%emt 0:03:08]} 30. Bxc4 {[%emt 0:00:08]} Bxc4 {[%emt 0:01:05]} 31. Kxc1 {[%emt 0:00:08]} Be2 {[%emt 0:02:41]} 32. Rb3 {[%emt 0:04:24]} Rd5 {[%emt 0:03:20]} 33. b6 {[%emt 0:01:05]} axb6 {[%emt 0:00:22]} 34. Nh4 {[%emt 0:04:04]} b5 {[%emt 0:04:12]} 35. e6 {[%emt 0:04:15]} Rd8 {[%emt 0:01:24]} 36. Rg3 {[%emt 0:01:34]} Bh5 {[%emt 0:02:02]} 37. Rc3 {[%emt 0:00:14]} Kg7 {[%emt 0:01:39]} 38. Rc7+ {[%emt 0:00:33]} Kf6 {[%emt 0:00:13]} 39. Rxb7 {[%emt 0:00:19]} Kxe6 {[%emt 0:03:06]} 40. Rxb5 {[%emt 0:00:05]} Rd1+ {[%emt 0:00:38]} 41. Kc2 {[%emt 0:30:08]} Rh1 {[%emt 0:30:35]} 0-1

[Event "SWE-ch Masters 2018"]
[Site "Ronneby"]
[Date "2018.07.08"]
[Round "9"]
[White "Adler, Bo"]
[Black "Wengholm, Anders"]
[Result "1/2-1/2"]
[ECO "E29"]
[WhiteElo "2177"]
[BlackElo "2186"]
[Annotator "NA"]
[PlyCount "82"]
[EventDate "2018.06.30"]
[EventType "tourn"]
[EventCountry "SWE"]
[SourceTitle "playchess.com"]
[Source "ChessBase"]
[SourceQuality "1"]
[TimeControl "40/5400+30:1800+30"]

1. d4 {[%emt 0:03:55]} Nf6 {[%emt 0:00:00]} 2. c4 {[%emt 0:00:08]} e6 {[%emt 0:00:07]} 3. Nc3 {[%emt 0:01:50]} Bb4 {[%emt 0:00:39]} 4. a3 {[%emt 0:00:47]} Bxc3+ $1 {[%emt 0:00:15]} 5. bxc3 {[%emt 0:00:01]} c5 {[%emt 0:00:27]} 6. e3 {[%emt 0:00:06]} Nc6 {[%emt 0:00:23]} 7. Bd3 {[%emt 0:01:03]} O-O {[%emt 0:01:23]} 8. Ne2 {[%emt 0:00:12]} b6 {[%emt 0:00:28]} 9. e4 {[%emt 0:03:15] LiveBook: 223 Games} Ne8 {[%emt 0:00:31]} 10. O-O {[%emt 0:00:57]} Ba6 {[%emt 0:13:59]} 11. Ng3 {[%emt 0:04:24]} Na5 {[%emt 0:07:00]} 12. Qe2 {[%emt 0:08:39] E29: Nimzo-Indian: Sämisch: 5...0-0 6 e3 c5 7 Bd3 Nc6} (12. f4 f6 13. f5 Bxc4 14. Bxc4 Nxc4 15. Rf4 cxd4 16. Rh4 dxc3 17. Qh5 Qc7 18. Qxh7+ Kf7 19. Qh5+ Ke7 {0-1 (39) Flores,D (2580)-Bu,X (2710) Tbilisi 2017}) 12... cxd4 {[%emt 0:42:13]} 13. cxd4 {[%emt 0:05:54]} Nb3 {[%emt 0:03:38]} 14. Rb1 {[%emt 0:00:42]} Nxd4 {[%emt 0:00:13]} 15. Qe3 {[%emt 0:02:08]} Nc6 $146 {[%emt 0:01:31]} ({Predecessor:} 15... e5 16. f4 d6 17. Bb2 Nc6 18. Nf5 f6 19. g4 exf4 20. Rxf4 {0-1 (34) Sikora Lerch,J-Pachman,L Luhacovice 1968}) 16. Bb2 $15 {[%emt 0:03:11]} f6 {[%emt 0:00:21]} 17. Rfd1 {[%emt 0:01:25]} Qe7 {[%emt 0:00:25]} 18. Rbc1 {[%emt 0:08:33]} Qc5 {[%emt 0:05:49]} 19. Qf3 {[%emt 0:08:34]} Nd6 {[%emt 0:02:50]} 20. Nh5 {[%emt 0:06:25]} Ne5 {[%emt 0:03:21]} 21. Qg3 {[%emt 0:00:44]} Ng6 {[%emt 0:03:41]} 22. e5 {[%emt 0:01:39]} fxe5 {[%emt 0:01:30]} 23. Bxg6 {[%emt 0:05:33]} hxg6 {[%emt 0:00:23]} 24. Bxe5 {[%emt 0:06:47]} Nf5 {[%emt 0:02:58]} 25. Qxg6 {[%emt 0:15:05]} Qxe5 {[%emt 0:03:13]} 26. Rxd7 {[%emt 0:00:32]} Bc8 {[%emt 0:00:04]} 27. Rd3 {[%emt 0:01:19]} Ne7 {[%emt 0:01:08]} 28. Qg4 {[%emt 0:00:24]} g6 {[%emt 0:01:04]} 29. Rh3 {[%emt 0:01:48]} Qf5 {[%emt 0:00:30]} 30. Qh4 {[%emt 0:02:48]} gxh5 {[%emt 0:01:16]} 31. Rg3+ {[%emt 0:01:48]} Ng6 {[%emt 0:00:17]} 32. Rg5 {[%emt 0:00:09]} Qf6 {[%emt 0:00:21]} 33. Kh1 {[%emt 0:02:08]} Kg7 {[%emt 0:00:29]} 34. Qxh5 {[%emt 0:01:45]} e5 {[%emt 0:00:52]} 35. Rc3 {[%emt 0:00:11]} e4 {[%emt 0:01:35]} 36. Rxg6+ {[%emt 0:00:44]} Qxg6 {[%emt 0:00:02]} 37. Qe5+ {[%emt 0:00:53]} Qf6 {[%emt 0:00:38]} 38. Rg3+ {[%emt 0:00:36]} Kf7 {[%emt 0:00:11]} 39. Qd5+ {[%emt 0:00:49]} Ke7 {[%emt 0:00:28]} 40. h3 {[%emt 0:00:26]} Bd7 {[%emt 0:01:52]} 41. Qxe4+ {[%emt 0:05:13]} Be6 1/2-1/2

[Event "SWE-ch Masters 2018"]
[Site "Ronneby"]
[Date "2018.07.08"]
[Round "9"]
[White "Tiger-Norqvist, Axel"]
[Black "Neretljak, Nedzad"]
[Result "1-0"]
[ECO "C02"]
[WhiteElo "2158"]
[BlackElo "2108"]
[Annotator "NA"]
[PlyCount "83"]
[EventDate "2018.06.30"]
[EventType "tourn"]
[EventCountry "SWE"]
[SourceTitle "playchess.com"]
[Source "ChessBase"]
[SourceQuality "1"]
[TimeControl "40/5400+30:1800+30"]

1. e4 {[%emt 0:00:00]} e6 {[%emt 0:00:00]} 2. d4 {[%emt 0:00:00]} d5 {[%emt 0:00:00]} 3. e5 {[%emt 0:00:00]} c5 {[%emt 0:00:00]} 4. c3 {[%emt 0:00:00]} Nc6 {[%emt 0:00:06]} 5. Nf3 {[%emt 0:00:00]} Bd7 {[%emt 0:00:16]} 6. a3 {[%emt 0:00:01]} a6 {[%emt 0:06:05]} 7. Be3 {[%emt 0:06:48]} Qc7 {[%emt 0:04:34]} 8. Bd3 {[%emt 0:10:28]} f6 {[%emt 0:00:48]} 9. exf6 {[%emt 0:00:38]} gxf6 {[%emt 0:00:29]} 10. dxc5 $11 {[%emt 0:06:54]} e5 {[%emt 0:02:53]} 11. Nh4 {[%emt 0:00:58]} O-O-O {[%emt 0:02:30]} 12. b4 {[%emt 0:09:54]} e4 {[%emt 0:02:25]} 13. Be2 {[%emt 0:00:45]} Bh6 {[%emt 0:06:50]} 14. Qxd5 {[%emt 0:15:25]} Bg5 {[%emt 0:06:45]} 15. Nf5 {[%emt 0:02:45]} Kb8 {[%emt 0:04:52]} 16. Nd6 {[%emt 0:01:16]} Nge7 {[%emt 0:02:13]} 17. Qxe4 {[%emt 0:11:42]} f5 {[%emt 0:02:02]} 18. Qd3 {[%emt 0:10:25]} Ne5 {[%emt 0:14:18]} 19. Qd2 {[%emt 0:01:02]} f4 {[%emt 0:00:34]} 20. Bd4 {[%emt 0:01:10]} N7g6 {[%emt 0:01:28]} 21. h4 {[%emt 0:00:28]} Qc6 {[%emt 0:16:38]} 22. f3 {[%emt 0:04:20]} Bf6 {[%emt 0:04:05]} 23. Bf2 {[%emt 0:05:25]} h5 {[%emt 0:00:18]} 24. a4 {[%emt 0:00:19]} Bf5 {[%emt 0:00:44]} 25. b5 {[%emt 0:01:38]} Qd7 {[%emt 0:00:20]} 26. bxa6 {[%emt 0:01:28]} Qe6 {[%emt 0:02:09]} 27. Kf1 {[%emt 0:01:06]} Ng4 {[%emt 0:05:49]} 28. fxg4 {[%emt 0:01:34]} hxg4 {[%emt 0:00:04]} 29. Bc4 {[%emt 0:01:53]} Qd7 {[%emt 0:02:31]} 30. Qd5 {[%emt 0:01:31]} Ne7 {[%emt 0:00:42]} 31. Qxb7+ {[%emt 0:00:29]} Qxb7 {[%emt 0:00:06]} 32. axb7 {[%emt 0:00:08]} g3 {[%emt 0:01:20]} 33. Bd4 {[%emt 0:00:42]} Rxh4 {[%emt 0:00:14]} 34. Rxh4 {[%emt 0:00:12]} Bxh4 {[%emt 0:00:07]} 35. Nd2 {[%emt 0:00:36]} Bg4 {[%emt 0:01:57]} 36. a5 {[%emt 0:00:58]} Nc6 {[%emt 0:00:50]} 37. a6 {[%emt 0:00:47]} Rf8 {[%emt 0:00:21]} 38. Bd5 {[%emt 0:01:01]} Na7 {[%emt 0:01:46]} 39. Nb5 {[%emt 0:02:26]} Bf6 {[%emt 0:00:16]} 40. Nxa7 {[%emt 0:00:33]} Kxa7 {[%emt 0:00:55]} 41. Bxf6 {[%emt 0:30:08]} Rxf6 {[%emt 0:30:07]} 42. b8=Q+ {[%emt 0:00:15]} 1-0

[Event "SWE-ch Masters 2018"]
[Site "Ronneby"]
[Date "2018.07.08"]
[Round "9"]
[White "Petersson, Baldur Teodor"]
[Black "Svorono, Gabriel"]
[Result "1-0"]
[ECO "C43"]
[WhiteElo "2153"]
[BlackElo "2105"]
[Annotator "NA"]
[PlyCount "43"]
[EventDate "2018.06.30"]
[EventType "tourn"]
[EventCountry "SWE"]
[SourceTitle "playchess.com"]
[Source "ChessBase"]
[SourceQuality "1"]
[TimeControl "40/5400+30:1800+30"]

1. e4 {[%emt 0:00:13]} e5 {[%emt 0:00:00]} 2. Nf3 {[%emt 0:01:10]} Nf6 {[%emt 0:00:00]} 3. d4 {[%emt 0:00:55]} Nxe4 {[%emt 0:00:00]} 4. Bd3 {[%emt 0:00:04]} d5 {[%emt 0:00:00]} 5. Nxe5 {[%emt 0:00:06]} Nd7 {[%emt 0:00:04]} 6. Nxd7 {[%emt 0:00:15]} Bxd7 {[%emt 0:00:08]} 7. O-O {[%emt 0:00:15]} Bd6 {[%emt 0:00:12]} 8. Nc3 {[%emt 0:02:13]} Nxc3 {[%emt 0:01:21]} 9. bxc3 {[%emt 0:03:20]} O-O {[%emt 0:02:29]} 10. Qh5 {[%emt 0:01:15]} f5 {[%emt 0:00:04]} 11. Rb1 {[%emt 0:00:59] LiveBook: 35 Games} b6 {[%emt 0:00:53]} 12. c4 {[%emt 0:00:57]} c6 {[%emt 0:02:08]} 13. cxd5 $11 {[%emt 0:03:35]} cxd5 {[%emt 0:00:08]} 14. Qf3 {[%emt 0:00:10]} Be6 {[%emt 0:00:46]} 15. Re1 {[%emt 0:00:50]} Qf6 {[%emt 0:00:45]} 16. Bf4 {[%emt 0:00:42]} Bxf4 {[%emt 0:03:10]} 17. Qxf4 {[%emt 0:00:11]} Rae8 {[%emt 0:03:06]} 18. Qd6 {[%emt 0:04:09]} f4 {[%emt 0:05:07]} 19. Bb5 {[%emt 0:01:11]} Re7 {[%emt 0:00:21]} 20. Bc6 {[%emt 0:00:58]} Qf7 {[%emt 0:02:39]} 21. Bxd5 {[%emt 0:01:01]} Rd7 {[%emt 0:00:22]} 22. Qxd7 1-0

[Event "SWE-ch Masters 2018"]
[Site "Ronneby"]
[Date "2018.07.08"]
[Round "9"]
[White "Palmblad, Jan Peter"]
[Black "Mardell, Jimmy"]
[Result "0-1"]
[ECO "C11"]
[WhiteElo "2099"]
[BlackElo "2173"]
[Annotator "NA"]
[PlyCount "104"]
[EventDate "2018.06.30"]
[EventType "tourn"]
[EventCountry "SWE"]
[SourceTitle "playchess.com"]
[Source "ChessBase"]
[SourceQuality "1"]
[TimeControl "40/5400+30:1800+30"]

1. e4 {[%emt 0:10:59]} e6 {[%emt 0:00:00]} 2. d4 {[%emt 0:00:16]} d5 {[%emt 0:00:00]} 3. Nc3 {[%emt 0:00:06]} Nf6 {[%emt 0:00:00]} 4. e5 {[%emt 0:00:06]} Nfd7 {[%emt 0:00:00]} 5. f4 {[%emt 0:00:06]} c5 {[%emt 0:00:00]} 6. Nf3 {[%emt 0:00:05]} Nc6 {[%emt 0:00:00]} 7. Be3 {[%emt 0:00:06]} cxd4 {[%emt 0:00:06]} 8. Nxd4 {[%emt 0:00:09]} Bc5 {[%emt 0:00:04]} 9. Qd2 {[%emt 0:00:12]} O-O {[%emt 0:00:13]} 10. O-O-O {[%emt 0:00:08]} a6 {[%emt 0:00:10]} 11. Qf2 {[%emt 0:00:18]} Bxd4 {[%emt 0:01:55]} 12. Bxd4 {[%emt 0:00:36]} b5 {[%emt 0:00:05]} 13. Bc5 {[%emt 0:01:57] C11: Französische Verteidigung} (13. Be3 Qa5 14. Kb1 b4 15. Ne2 Qc7 16. Nd4 Nxd4 17. Bxd4 a5 18. Bb5 a4 19. b3 Ba6 20. Bxa4 Rfc8 {1-0 (74) So,W (2808)-Holt,C (2567) chess.com INT 2017}) 13... Nxc5 {[%emt 0:00:51]} 14. Qxc5 {[%emt 0:00:09]} Bb7 $146 {[%emt 0:01:26]} ({Vorgänger:} 14... Bd7 15. Qd6 Qb6 16. Nxd5 exd5 17. Qxd7 Qf2 18. Qg4 Nb4 19. Bd3 Rac8 20. Kb1 Nxd3 {0-1 (20) Schuetze,N (2276)-Liedtke,M (2352) Germany 2007}) 15. Ne4 {[%emt 0:05:12]} Qe7 {[%emt 0:23:45]} 16. Nd6 {[%emt 0:05:35]} f6 {[%emt 0:03:14]} 17. exf6 {[%emt 0:02:01]} Rxf6 {[%emt 0:00:15]} 18. Nxb7 {[%emt 0:00:19]} Qxb7 {[%emt 0:00:04]} 19. g3 {[%emt 0:00:24]} Rc8 {[%emt 0:03:43]} 20. Rd2 $11 {[%emt 0:05:35]} Ne5 {[%emt 0:03:51]} 21. Qg1 {[%emt 0:14:57]} Nf3 {[%emt 0:01:10]} 22. Qe3 {[%emt 0:00:20]} Nxd2 {[%emt 0:06:52]} 23. Qxd2 {[%emt 0:00:08]} Qb6 {[%emt 0:01:01]} 24. Bh3 {[%emt 0:00:30]} Rff8 {[%emt 0:08:22]} 25. Re1 {[%emt 0:00:41]} Rc6 {[%emt 0:00:23]} 26. f5 {[%emt 0:00:50]} exf5 {[%emt 0:04:36]} 27. Qxd5+ {[%emt 0:00:09]} Kh8 {[%emt 0:00:02]} 28. Bxf5 {[%emt 0:05:18]} Qc5 {[%emt 0:07:10]} 29. Qxc5 {[%emt 0:07:22]} Rxc5 {[%emt 0:00:03]} 30. Bd3 {[%emt 0:00:13]} Rc6 {[%emt 0:00:19]} 31. Re4 {[%emt 0:06:11]} Kg8 {[%emt 0:01:44]} 32. a4 {[%emt 0:01:43]} Rf2 {[%emt 0:02:55]} 33. axb5 {[%emt 0:00:24]} axb5 {[%emt 0:00:04]} 34. h4 {[%emt 0:02:51]} Kf7 {[%emt 0:07:01]} 35. Re5 {[%emt 0:01:33]} Re6 {[%emt 0:00:35]} 36. Rxe6 {[%emt 0:04:24]} Kxe6 {[%emt 0:00:04]} 37. Bxh7 {[%emt 0:00:17]} Rg2 {[%emt 0:02:39]} 38. h5 {[%emt 0:01:46]} Rxg3 {[%emt 0:01:52]} 39. c3 {[%emt 0:01:29]} Kd5 {[%emt 0:17:02]} 40. Kb1 {[%emt 0:00:38]} Kc4 {[%emt 0:03:11]} 41. Bg8+ {[%emt 0:31:04]} Kd3 {[%emt 0:30:09]} 42. Ka2 {[%emt 0:00:48]} Kc2 {[%emt 0:02:50]} 43. Ka3 {[%emt 0:00:38]} Rg4 {[%emt 0:00:00]} 44. Bh7+ {[%emt 0:00:00]} Kc1 {[%emt 0:00:00]} 45. Bg8 {[%emt 0:00:00]} Ra4+ {[%emt 0:00:00]} 46. Kb3 {[%emt 0:00:00]} Rh4 {[%emt 0:00:00]} 47. Bf7 {[%emt 0:00:00]} Rh2 {[%emt 0:00:00]} 48. c4 {[%emt 0:00:00]} Rxb2+ {[%emt 0:00:00]} 49. Ka3 {[%emt 0:00:00]} Rf2 {[%emt 0:00:00]} 50. Be6 {[%emt 0:00:00]} bxc4 {[%emt 0:00:00]} 51. Bxc4 {[%emt 0:00:00]} Rf5 {[%emt 0:00:00]} 52. Kb4 {[%emt 0:00:00]} Kd2 {[%emt 0:00:00]} 0-1

[Event "SWE-ch Masters 2018"]
[Site "Ronneby"]
[Date "2018.07.08"]
[Round "9"]
[White "Carlsson, Andreas"]
[Black "Mattsson, Michael"]
[Result "0-1"]
[ECO "C48"]
[WhiteElo "2029"]
[BlackElo "2032"]
[Annotator "NA"]
[PlyCount "96"]
[EventDate "2018.06.30"]
[EventType "tourn"]
[EventCountry "SWE"]
[SourceTitle "playchess.com"]
[Source "ChessBase"]
[SourceQuality "1"]
[TimeControl "40/5400+30:1800+30"]

1. e4 {[%emt 0:00:00]} e5 {[%emt 0:00:00]} 2. Nf3 {[%emt 0:00:00]} Nc6 {[%emt 0:00:00]} 3. Nc3 {[%emt 0:00:00]} Nf6 {[%emt 0:00:00]} 4. Bb5 {[%emt 0:00:00]} Nd4 {[%emt 0:00:15]} 5. Nxd4 {[%emt 0:00:00]} exd4 {[%emt 0:00:10]} 6. e5 {[%emt 0:00:00]} dxc3 {[%emt 0:03:59]} 7. exf6 {[%emt 0:00:07]} cxd2+ {[%emt 0:10:36] C48: Four Knights: 4 Bb5, replies other than 4...Bb4} (7... Qxf6 8. Qe2+ Qe7 9. dxc3 Qxe2+ 10. Kxe2 Bc5 11. Be3 Bxe3 12. Kxe3 c6 13. Bd3 d5 14. Rae1 Ke7 15. c4 dxc4 16. Bxc4 Rd8 17. Rd1 Be6 18. Bxe6 Kxe6 {½-½ (27) Carlsen,M (2843)-Ding,L (2778) Shamkir 2018}) 8. Bxd2 {[%emt 0:00:11]} Qxf6 {[%emt 0:00:07]} 9. Bc3 {[%emt 0:08:09]} Qe6+ {[%emt 0:04:33]} 10. Qe2 {[%emt 0:01:44]} Qxe2+ {[%emt 0:00:30]} 11. Bxe2 {[%emt 0:00:14]} d5 $146 {[%emt 0:03:02]} ({Predecessor:} 11... f6 12. O-O-O Bc5 13. f4 O-O 14. Rhe1 Be3+ 15. Bd2 Bxd2+ 16. Rxd2 {0-1 (49) Padalka,A-Sharaevsky,M Ukraine 2000}) 12. O-O-O {[%emt 0:00:06]} Be6 {[%emt 0:01:25]} 13. Bf3 {[%emt 0:00:31]} O-O-O {[%emt 0:00:53]} 14. Rhe1 {[%emt 0:00:23]} Rg8 {[%emt 0:04:40]} 15. h3 {[%emt 0:01:53]} Bc5 {[%emt 0:01:03]} 16. Bd4 {[%emt 0:01:40]} Bxd4 {[%emt 0:01:07]} 17. Rxd4 {[%emt 0:00:08]} Rd6 {[%emt 0:01:34]} 18. a3 {[%emt 0:02:09]} c5 {[%emt 0:01:15]} 19. Rd2 {[%emt 0:00:31]} Kc7 {[%emt 0:02:35]} 20. Re5 {[%emt 0:01:16]} Rgd8 {[%emt 0:03:20]} 21. g4 {[%emt 0:02:19]} f6 {[%emt 0:03:15]} 22. Re1 {[%emt 0:00:19]} d4 {[%emt 0:00:55]} 23. Rde2 {[%emt 0:01:04]} Bd5 {[%emt 0:00:25]} 24. Re7+ {[%emt 0:00:57] [#]} R8d7 $1 {[%emt 0:00:44]} 25. Bxd5 {[%emt 0:03:23]} Rxd5 {[%emt 0:03:00]} 26. Kd2 {[%emt 0:00:34]} Rxe7 {[%emt 0:07:00]} 27. Rxe7+ {[%emt 0:00:09]} Rd7 {[%emt 0:00:04]} 28. Re8 {[%emt 0:00:29]} Kd6 {[%emt 0:03:49]} 29. Re4 {[%emt 0:05:15]} Re7 {[%emt 0:00:45]} 30. Rf4 {[%emt 0:00:06]} Re5 {[%emt 0:00:59]} 31. Rf3 {[%emt 0:01:38]} c4 {[%emt 0:01:09]} 32. Rg3 {[%emt 0:02:07]} b5 {[%emt 0:02:06]} 33. Kd1 {[%emt 0:00:49]} Kd5 {[%emt 0:00:20]} 34. Kd2 {[%emt 0:00:04]} Ke4 {[%emt 0:01:31]} 35. Ke2 {[%emt 0:00:28]} a5 {[%emt 0:01:00]} 36. Kd2 {[%emt 0:00:36]} b4 $19 {[%emt 0:01:48]} 37. axb4 {[%emt 0:03:05]} axb4 {[%emt 0:00:09]} 38. b3 {[%emt 0:01:29]} c3+ {[%emt 0:01:15]} 39. Ke2 {[%emt 0:00:55]} Kd5+ {[%emt 0:04:11]} 40. Kd1 {[%emt 0:01:11]} Re6 {[%emt 0:01:49]} 41. Rf3 {[%emt 0:31:35]} g6 {[%emt 0:31:34]} 42. Rf4 {[%emt 0:00:55]} Ke5 {[%emt 0:00:26]} 43. Rf3 {[%emt 0:00:11]} Ra6 {[%emt 0:00:15]} 44. Ke2 {[%emt 0:02:57]} Ke4 {[%emt 0:00:35]} 45. Rd3 {[%emt 0:03:58]} Ra2 {[%emt 0:01:44]} 46. f3+ {[%emt 0:00:11]} Kd5 {[%emt 0:00:14]} 47. Kd1 {[%emt 0:00:14]} Ra1+ {[%emt 0:00:06]} 48. Ke2 {[%emt 0:00:09]} Rc1 {[%emt 0:00:09]} 0-1

[Event "SWE-ch Masters 2018"]
[Site "Ronneby"]
[Date "2018.07.08"]
[Round "9"]
[White "Bit-Narva, David"]
[Black "Tegler, Erik"]
[Result "1/2-1/2"]
[ECO "A46"]
[WhiteElo "1977"]
[BlackElo "2073"]
[Annotator "NA"]
[PlyCount "30"]
[EventDate "2018.06.30"]
[EventType "tourn"]
[EventCountry "SWE"]
[SourceTitle "playchess.com"]
[Source "ChessBase"]
[SourceQuality "1"]
[TimeControl "40/5400+30:1800+30"]

1. d4 {[%emt 0:01:08]} Nf6 {[%emt 0:00:00]} 2. Nf3 {[%emt 0:00:04]} e6 {[%emt 0:00:00]} 3. e3 {[%emt 0:00:21]} b6 {[%emt 0:00:11]} 4. b3 {[%emt 0:00:29]} Bb4+ {[%emt 0:01:12]} 5. c3 {[%emt 0:00:13]} Be7 {[%emt 0:00:02]} 6. Bd3 {[%emt 0:00:27]} Bb7 {[%emt 0:00:05]} 7. Nbd2 {[%emt 0:00:34]} d5 {[%emt 0:01:09]} 8. Qc2 {[%emt 0:07:55]} Nbd7 {[%emt 0:02:25]} 9. e4 $11 {[%emt 0:01:30]} dxe4 {[%emt 0:00:53]} 10. Nxe4 {[%emt 0:00:05]} c5 {[%emt 0:02:10]} 11. O-O {[%emt 0:03:57]} Nxe4 {[%emt 0:02:23]} 12. Bxe4 {[%emt 0:00:06]} Bxe4 {[%emt 0:00:05]} 13. Qxe4 {[%emt 0:00:04]} O-O {[%emt 0:00:31]} 14. Bb2 {[%emt 0:05:26]} Qc7 {[%emt 0:02:01]} 15. c4 {[%emt 0:07:34]} Nf6 {[%emt 0:20:33]} 1/2-1/2